[Event "FIDE World School-ch G-17 2025"]
[Site "Vrnjacka Banja"]
[Date "2025.03.22"]
[Round "3.1"]
[White "Altynbek, Aiaru"]
[Black "Buyankhishig, Batpelden"]
[Result "0-1"]
[Annotator "NA RC"]
[ECO "E12"]
[WhiteElo "2005"]
[BlackElo "1907"]
[PlyCount "134"]
[EventDate "2025.03.19"]
[EventType "swiss"]
[EventCountry "SRB"]
[SourceTitle "playchess.com"]
[Source "ChessBase"]
[SourceQuality "1"]
[TimeControl "5400+30"]

1. d4 {[%emt 0:00:01]} Nf6 {[%emt 0:03:35]} 2. c4 {[%emt 0:00:51]} e6 {[%emt 0:00:25]} 3. Nf3 {[%emt 0:00:14]} b6 {[%emt 0:01:01]} 4. a3 {[%emt 0:00:26]} Bb7 {[%emt 0:00:49]} 5. Nc3 {[%emt 0:00:27]} d5 {[%emt 0:00:15]} 6. cxd5 {[%emt 0:00:18]} Nxd5 {[%emt 0:00:19]} 7. Qc2 {[%emt 0:00:27]} Nxc3 {[%emt 0:03:51]} 8. bxc3 {[%emt 0:00:29]} Be7 {[%emt 0:01:29]} 9. e4 {[%emt 0:00:30]} O-O {[%emt 0:00:16]} 10. Bd3 {[%emt 0:00:42]} c5 {[%emt 0:01:50]} 11. O-O {[%emt 0:00:51]} Qc7 {[%emt 0:05:25]} 12. Qe2 {[%emt 0:01:53]} Rd8 {[%emt 0:06:11]} 13. Re1 {[%emt 0:05:42]} Nc6 {[%emt 0:10:33]} 14. Bb2 $11 {[%emt 0:02:46]} (14. d5 $1 $14 exd5 15. exd5 Rxd5 16. Bg5) 14... Bf8 {[%emt 0:04:22]} 15. h4 {[%emt 0:12:57]} a6 {[%emt 0:12:39]} 16. h5 {[%emt 0:04:40]} b5 {[%emt 0:04:15]} 17. Red1 {[%emt 0:04:26]} c4 {[%emt 0:03:22]} 18. Bc2 {[%emt 0:01:00]} e5 {[%emt 0:00:14]} 19. d5 {[%emt 0:01:13]} Nb8 {[%emt 0:02:55]} 20. Bc1 {[%emt 0:10:40]} Nd7 {[%emt 0:05:17]} 21. Nh4 {[%emt 0:01:31]} Nc5 {[%emt 0:11:48]} 22. Bg5 {[%emt 0:05:54]} Be7 {[%emt 0:04:11]} 23. Bxe7 {[%emt 0:09:37]} Qxe7 {[%emt 0:00:08]} 24. Nf5 {[%emt 0:01:13]} Qg5 {[%emt 0:02:59]} 25. Qe3 {[%emt 0:06:02]} Qxe3 {[%emt 0:00:11]} 26. Nxe3 {[%emt 0:00:16]} Bc8 {[%emt 0:02:54]} 27. Rab1 {[%emt 0:01:32]} g6 {[%emt 0:02:53]} 28. hxg6 {[%emt 0:01:06]} hxg6 {[%emt 0:00:06]} 29. g3 {[%emt 0:00:28]} Kg7 {[%emt 0:02:41]} 30. Kg2 {[%emt 0:00:20]} Bd7 {[%emt 0:00:35]} 31. Rh1 {[%emt 0:04:45]} Rh8 {[%emt 0:01:12]} 32. f4 {[%emt 0:11:58]} f6 {[%emt 0:01:47]} 33. Kf3 {[%emt 0:00:48]} Rae8 {[%emt 0:02:15]} 34. fxe5 {[%emt 0:04:16]} fxe5 {[%emt 0:01:27]} 35. Ng2 {[%emt 0:02:05]} Ref8+ {[%emt 0:01:30]} 36. Ke3 {[%emt 0:00:04]} Bg4 {[%emt 0:01:35]} 37. Nh4 {[%emt 0:03:59]} g5 {[%emt 0:00:25]} 38. Nf5+ {[%emt 0:00:17]} Bxf5 {[%emt 0:00:09]} 39. exf5 {[%emt 0:00:11]} g4 {[%emt 0:01:29]} 40. Be4 {[%emt 0:01:05]} Kf6 {[%emt 0:00:25]} 41. Rbd1 {[%emt 0:01:02]} Ke7 {[%emt 0:00:37]} 42. d6+ {[%emt 0:00:37]} Kd8 {[%emt 0:00:24]} 43. Rh4 {[%emt 0:00:47]} Rxh4 {[%emt 0:00:21]} 44. gxh4 {[%emt 0:00:00]} Rh8 {[%emt 0:00:31]} 45. Rh1 {[%emt 0:00:36]} Kd7 {[%emt 0:00:29]} 46. h5 {[%emt 0:00:29]} Rh6 {[%emt 0:00:44]} 47. Bd5 {[%emt 0:00:31]} Kxd6 {[%emt 0:00:21]} 48. Bf7 {[%emt 0:00:04]} Nd3 {[%emt 0:00:32]} 49. Rg1 {[%emt 0:00:35]} Ke7 {[%emt 0:00:27]} 50. Bg6 {[%emt 0:00:08]} Kf6 {[%emt 0:00:32]} 51. Rxg4 {[%emt 0:00:51]} Nf4 {[%emt 0:00:29]} 52. Rg1 {[%emt 0:00:56]} Nd5+ {[%emt 0:00:33]} 53. Kd2 {[%emt 0:00:08]} e4 {[%emt 0:00:21]} 54. Ra1 {[%emt 0:00:38]} Rh8 {[%emt 0:00:42]} 55. a4 {[%emt 0:00:20]} e3+ {[%emt 0:00:16]} 56. Kc2 {[%emt 0:00:13]} bxa4 {[%emt 0:00:26]} 57. Rxa4 {[%emt 0:00:39]} Nf4 {[%emt 0:00:36]} 58. Rxa6+ {[%emt 0:00:45]} Ke5 {[%emt 0:00:28]} 59. Ra5+ {[%emt 0:00:51]} Ke4 {[%emt 0:00:41]} 60. f6+ {[%emt 0:01:24]} Kf3 {[%emt 0:00:01]} 61. f7 {[%emt 0:00:43]} e2 {[%emt 0:00:26]} 62. Re5 {[%emt 0:00:22]} Kf2 {[%emt 0:00:29]} 63. Rf5 {[%emt 0:00:49]} e1=Q {[%emt 0:00:18]} 64. Rxf4+ {[%emt 0:00:03]} Kg3 {[%emt 0:00:08]} 65. f8=Q {[%emt 0:00:11]} Qe2+ {[%emt 0:01:29]} 66. Kb1 {[%emt 0:00:54]} Qd1+ {[%emt 0:00:23]} 67. Kb2 {[%emt 0:00:43]} Rxf8 {[%emt 0:00:15]} 0-1

[Event "FIDE World School-ch G-17 2025"]
[Site "Vrnjacka Banja"]
[Date "2025.03.22"]
[Round "3.2"]
[White "Orazalina, Nursulu"]
[Black "Maslova, Anastasiya Yar"]
[Result "1/2-1/2"]
[Annotator "NA RC"]
[ECO "B11"]
[WhiteElo "1895"]
[BlackElo "1938"]
[PlyCount "82"]
[EventDate "2025.03.19"]
[EventType "swiss"]
[EventCountry "SRB"]
[SourceTitle "playchess.com"]
[Source "ChessBase"]
[SourceQuality "1"]
[TimeControl "5400+30"]

1. e4 {[%emt 0:01:59]} c6 {[%emt 0:00:09]} 2. Nc3 {[%emt 1:29:31]} d5 {[%emt 0:00:10]} 3. Nf3 {[%emt 0:00:00]} Bg4 {[%emt 0:00:08]} 4. h3 {[%emt 0:00:00]} Bxf3 {[%emt 0:00:08]} 5. Qxf3 {[%emt 0:00:00]} e6 {[%emt 0:00:17]} 6. d4 {[%emt 0:00:00]} Nf6 {[%emt 0:00:08]} 7. a3 {[%emt 0:00:00]} dxe4 {[%emt 0:05:44]} 8. Qe3 {[%emt 0:00:00]} Nbd7 {[%emt 0:04:13]} 9. Nxe4 {[%emt 0:00:00]} Nxe4 {[%emt 0:01:03]} 10. Qxe4 {[%emt 0:00:00]} Nf6 {[%emt 0:00:20]} 11. Qd3 {[%emt 0:00:00]} Qd5 {[%emt 0:02:48]} 12. c4 {[%emt 0:00:00]} Qe4+ {[%emt 0:00:49]} 13. Be3 {[%emt 0:00:00]} Qxd3 {[%emt 0:03:32]} 14. Bxd3 {[%emt 0:00:00]} Bd6 {[%emt 0:03:57]} 15. f4 {[%emt 0:00:00]} O-O {[%emt 0:04:52]} 16. O-O {[%emt 0:00:00]} b5 {[%emt 0:09:48]} 17. Rac1 {[%emt 0:00:00]} Rab8 {[%emt 0:03:48]} 18. cxb5 {[%emt 0:00:00]} cxb5 {[%emt 0:03:25]} 19. Rc6 {[%emt 0:00:00]} Rfd8 {[%emt 0:02:37]} 20. g3 {[%emt 0:00:00]} Nd5 {[%emt 0:04:30]} 21. Bf2 {[%emt 0:00:00]} g6 {[%emt 0:05:53]} 22. Rfc1 {[%emt 0:00:00]} h5 {[%emt 0:04:40]} 23. h4 {[%emt 0:00:00]} Nf6 {[%emt 0:07:38]} 24. Kg2 {[%emt 0:00:00]} Rb7 {[%emt 0:07:00]} 25. Be2 {[%emt 0:00:00]} b4 {[%emt 0:14:13]} 26. a4 {[%emt 0:00:00]} b3 {[%emt 0:01:15]} 27. Bf3 {[%emt 0:01:20]} Nd5 {[%emt 0:01:18]} 28. Bxd5 {[%emt 0:08:46]} exd5 {[%emt 0:00:05]} 29. Kf3 {[%emt 0:01:49]} Bb4 {[%emt 0:02:15]} 30. Rc7 {[%emt 0:00:59]} Rdb8 {[%emt 0:01:29]} 31. Rxb7 {[%emt 0:00:58]} Rxb7 {[%emt 0:00:04]} 32. Ke3 {[%emt 0:00:27]} Rb6 {[%emt 0:01:22]} 33. Kd3 {[%emt 0:00:15]} Kg7 {[%emt 0:01:12]} 34. Be1 {[%emt 0:00:27]} Bd6 {[%emt 0:03:23]} 35. Rc8 {[%emt 0:00:38]} Kf6 {[%emt 0:00:51]} 36. a5 {[%emt 0:00:16]} Rb7 {[%emt 0:01:17]} 37. Bd2 {[%emt 0:00:58]} Kf5 {[%emt 0:00:47]} 38. Rd8 {[%emt 0:00:09]} Ke6 {[%emt 0:00:41]} 39. Re8+ {[%emt 0:00:11]} Kf5 {[%emt 0:00:53]} 40. Rd8 {[%emt 0:00:25]} Ke6 {[%emt 0:00:10]} 41. Re8+ {[%emt 0:00:19]} Kf5 {[%emt 0:01:11]} 1/2-1/2

[Event "FIDE World School-ch G-17 2025"]
[Site "Vrnjacka Banja"]
[Date "2025.03.22"]
[Round "3.3"]
[White "Seyhan, Pelin"]
[Black "Kusakina, Uliana"]
[Result "1-0"]
[Annotator "NA RC"]
[ECO "B26"]
[WhiteElo "1924"]
[BlackElo "1855"]
[PlyCount "89"]
[EventDate "2025.03.19"]
[EventType "swiss"]
[EventCountry "SRB"]
[SourceTitle "playchess.com"]
[Source "ChessBase"]
[SourceQuality "1"]
[TimeControl "5400+30"]

1. e4 {[%emt 0:00:03]} c5 {[%emt 0:00:06]} 2. d3 {[%emt 0:00:57]} Nc6 {[%emt 0:00:23]} 3. g3 {[%emt 0:00:09]} g6 {[%emt 0:03:34]} 4. Bg2 {[%emt 0:00:09]} Bg7 {[%emt 0:00:12]} 5. Nc3 {[%emt 0:03:50]} d6 {[%emt 0:02:37]} 6. Be3 {[%emt 0:03:48]} Rb8 {[%emt 0:06:03]} 7. Nge2 {[%emt 0:01:58]} Nf6 {[%emt 0:06:01]} 8. h3 {[%emt 0:02:41]} b5 {[%emt 0:03:53]} 9. Qd2 {[%emt 0:04:46]} b4 {[%emt 0:06:41]} 10. Nd1 {[%emt 0:00:49]} O-O {[%emt 0:04:43]} 11. O-O {[%emt 0:06:40]} e5 {[%emt 0:06:07]} 12. Bg5 {[%emt 0:13:42]} Ne7 {[%emt 0:06:07]} 13. f4 {[%emt 0:02:21]} exf4 {[%emt 0:04:53]} 14. Qxf4 {[%emt 0:06:38]} Ne8 {[%emt 0:02:32]} 15. Qh4 {[%emt 0:05:21]} f6 {[%emt 0:00:55]} 16. Bd2 {[%emt 0:06:31]} f5 {[%emt 0:06:56]} 17. Bg5 {[%emt 0:01:04]} Bf6 {[%emt 0:03:45]} 18. Bxf6 {[%emt 0:00:57]} Nxf6 {[%emt 0:00:16]} 19. Ne3 {[%emt 0:00:45]} Kg7 {[%emt 0:01:30]} 20. exf5 {[%emt 0:03:24]} Nxf5 {[%emt 0:02:46]} 21. Nxf5+ {[%emt 0:02:16]} Bxf5 {[%emt 0:00:18]} 22. g4 {[%emt 0:00:17]} Bd7 {[%emt 0:03:13]} 23. g5 {[%emt 0:01:51]} Nh5 {[%emt 0:01:47]} 24. Rxf8 {[%emt 0:05:43]} Qxf8 {[%emt 0:00:42]} 25. Rf1 {[%emt 0:00:25]} Qe7 {[%emt 0:00:34]} 26. Nf4 {[%emt 0:05:57]} Qe3+ {[%emt 0:04:46]} 27. Kh2 {[%emt 0:00:17]} Nxf4 {[%emt 0:02:44]} 28. Rxf4 {[%emt 0:00:06]} Qe5 {[%emt 0:00:20]} 29. Kh1 {[%emt 0:00:08]} Bf5 {[%emt 0:00:42]} 30. d4 {[%emt 0:03:02]} Qe3 {[%emt 0:02:42]} 31. Qh6+ {[%emt 0:00:47]} Kh8 {[%emt 0:08:29]} 32. Rxf5 {[%emt 0:00:13]} Qe7 {[%emt 0:00:18]} 33. Rf6 {[%emt 0:01:41]} cxd4 {[%emt 0:00:36]} 34. Qh4 {[%emt 0:00:06]} Re8 {[%emt 0:02:17]} 35. Qxd4 {[%emt 0:00:43]} Qe1+ {[%emt 0:00:31]} 36. Kh2 {[%emt 0:01:01]} Qe5+ {[%emt 0:00:08]} 37. Qf4 {[%emt 0:02:32]} a5 {[%emt 0:00:26]} 38. Qxe5 {[%emt 0:02:48]} dxe5 {[%emt 0:00:06]} 39. Be4 {[%emt 0:00:23]} Rc8 {[%emt 0:00:41]} 40. Re6 {[%emt 0:00:46]} Rc5 {[%emt 0:00:07]} 41. Kg3 {[%emt 0:00:07]} a4 {[%emt 0:00:11]} 42. Rb6 {[%emt 0:01:27]} Rc4 {[%emt 0:00:17]} 43. Rb8+ {[%emt 0:00:04]} Kg7 {[%emt 0:00:06]} 44. Bd5 {[%emt 0:00:04]} Rxc2 {[%emt 0:00:14]} 45. Rg8# {[%emt 0:00:04]} 1-0

[Event "FIDE World School-ch G-17 2025"]
[Site "Vrnjacka Banja"]
[Date "2025.03.22"]
[Round "3.4"]
[White "Nauanova Zhaniya"]
[Black "Wang, Chloe Heather"]
[Result "0-1"]
[Annotator "NA RC"]
[ECO "C45"]
[WhiteElo "1905"]
[BlackElo "1892"]
[PlyCount "78"]
[EventDate "2025.03.19"]
[EventType "swiss"]
[EventCountry "SRB"]
[SourceTitle "playchess.com"]
[Source "ChessBase"]
[SourceQuality "1"]
[TimeControl "5400+30"]

1. e4 {[%emt 0:00:06]} e5 {[%emt 0:00:07]} 2. Nf3 {[%emt 0:00:03]} Nc6 {[%emt 0:00:05]} 3. d4 {[%emt 0:00:04]} exd4 {[%emt 0:00:08]} 4. Nxd4 {[%emt 0:00:06]} Nf6 {[%emt 0:00:25]} 5. Nxc6 {[%emt 0:00:07]} bxc6 {[%emt 0:00:04]} 6. Bd3 {[%emt 0:00:03]} d5 {[%emt 0:00:45]} 7. O-O {[%emt 0:00:07]} Be7 {[%emt 0:08:52]} 8. e5 {[%emt 0:00:20]} Nd7 {[%emt 0:03:39]} 9. f4 {[%emt 0:00:07]} Nc5 {[%emt 0:07:44]} 10. f5 {[%emt 0:09:29]} Nxd3 {[%emt 0:05:42]} 11. cxd3 {[%emt 0:01:35]} g6 {[%emt 0:10:09]} 12. f6 {[%emt 0:07:27]} Bf8 {[%emt 0:02:44]} 13. Qa4 {[%emt 0:15:16]} Qd7 {[%emt 0:12:37]} 14. Nc3 {[%emt 0:07:11]} Bb7 {[%emt 0:05:30]} 15. Bg5 {[%emt 0:10:28]} c5 {[%emt 0:11:55]} 16. Qa5 {[%emt 0:02:25]} O-O-O {[%emt 0:06:02]} 17. Bf4 {[%emt 0:07:36]} g5 {[%emt 0:06:12]} 18. Bg3 {[%emt 0:02:47]} h5 {[%emt 0:07:00]} 19. Nb5 {[%emt 0:16:49]} a6 {[%emt 0:06:01]} 20. e6 {[%emt 0:08:33]} fxe6 {[%emt 0:00:06]} 21. Nxc7 {[%emt 0:01:14]} h4 {[%emt 0:01:26]} 22. Be5 {[%emt 0:00:11]} Bd6 {[%emt 0:00:06]} 23. Bxd6 {[%emt 0:00:25]} Qxd6 {[%emt 0:00:05]} 24. Rac1 {[%emt 0:00:04]} c4 {[%emt 0:00:44]} 25. dxc4 {[%emt 0:00:35]} d4 {[%emt 0:00:06]} 26. Nb5 {[%emt 0:02:56]} axb5 {[%emt 0:00:13]} 27. cxb5+ {[%emt 0:00:03]} Kd7 {[%emt 0:00:05]} 28. Qa7 {[%emt 0:05:27]} Qd5 {[%emt 0:01:51]} 29. Rc6 {[%emt 0:00:11]} Rb8 {[%emt 0:00:10]} 30. Rfc1 {[%emt 0:01:30]} Rhc8 {[%emt 0:00:35]} 31. f7 {[%emt 0:01:59]} h3 {[%emt 0:00:18]} 32. f8=N+ {[%emt 0:00:42]} Ke7 {[%emt 0:01:54]} 33. R1c2 {[%emt 0:00:23]} Kxf8 {[%emt 0:01:14]} 34. Rc7 {[%emt 0:00:32]} Qe5 {[%emt 0:01:53]} 35. Rf2+ {[%emt 0:00:30]} Kg8 {[%emt 0:00:03]} 36. b6 {[%emt 0:00:31]} Qe1+ {[%emt 0:00:34]} 37. Rf1 {[%emt 0:00:07]} Qe3+ {[%emt 0:00:03]} 38. Rf2 {[%emt 0:00:05]} Rf8 {[%emt 0:00:38]} 39. Rcf7 {[%emt 0:00:19]} Rxf7 {[%emt 0:00:24]} 0-1

[Event "FIDE World School-ch G-17 2025"]
[Site "Vrnjacka Banja"]
[Date "2025.03.22"]
[Round "3.5"]
[White "Ivanovski, Kalina"]
[Black "Kirtadze, Anastasia"]
[Result "0-1"]
[Annotator "NA RC"]
[ECO "E32"]
[WhiteElo "1656"]
[BlackElo "2180"]
[PlyCount "136"]
[EventDate "2025.03.19"]
[EventType "swiss"]
[EventCountry "SRB"]
[SourceTitle "playchess.com"]
[Source "ChessBase"]
[SourceQuality "1"]
[TimeControl "5400+30"]

1. d4 {[%emt 0:00:01]} Nf6 {[%emt 0:00:09]} 2. c4 {[%emt 0:00:26]} e6 {[%emt 0:00:03]} 3. Nc3 {[%emt 0:00:07]} Bb4 {[%emt 0:00:06]} 4. Qc2 {[%emt 0:00:18]} O-O {[%emt 0:00:05]} 5. e4 {[%emt 0:00:06]} d6 {[%emt 0:00:21]} 6. Nf3 {[%emt 0:01:05]} e5 {[%emt 0:05:24]} 7. a3 {[%emt 0:09:43]} Bxc3+ {[%emt 0:01:10]} 8. bxc3 {[%emt 0:00:02]} Qe7 {[%emt 0:08:12]} 9. Bd3 {[%emt 0:05:42]} Nc6 {[%emt 0:03:58]} 10. h3 {[%emt 0:03:33]} Na5 $11 {[%emt 0:09:43]} 11. Bg5 {[%emt 0:20:41]} h6 {[%emt 0:03:27]} 12. Bh4 {[%emt 0:02:42]} g5 {[%emt 0:04:46]} 13. Nxg5 {[%emt 0:52:34]} hxg5 {[%emt 0:01:09]} 14. Bxg5 {[%emt 0:00:00]} Kg7 {[%emt 0:04:19]} 15. f3 {[%emt 0:00:00]} Qe6 {[%emt 0:04:07]} 16. d5 {[%emt 0:00:00]} Qd7 {[%emt 0:01:04]} 17. Qf2 {[%emt 0:00:00]} Ng8 {[%emt 0:12:32]} 18. f4 {[%emt 0:00:00]} f6 {[%emt 0:07:36]} 19. Bh4 {[%emt 0:00:00]} Nb3 {[%emt 0:02:11]} 20. Rb1 {[%emt 0:00:00]} Nc5 {[%emt 0:00:46]} 21. Qg3+ {[%emt 0:00:00]} Kh8 {[%emt 0:02:43]} 22. Bc2 {[%emt 0:04:30]} Qg7 {[%emt 0:06:17]} 23. Qxg7+ {[%emt 0:00:00]} Kxg7 {[%emt 0:00:01]} 24. f5 {[%emt 0:00:00]} b6 {[%emt 0:03:00]} 25. Bf2 {[%emt 0:00:00]} Ba6 {[%emt 0:01:31]} 26. Bxc5 {[%emt 0:00:00]} bxc5 {[%emt 0:00:45]} 27. Bd3 {[%emt 0:00:00]} Rab8 {[%emt 0:02:48]} 28. Kd2 {[%emt 0:00:00]} Ne7 {[%emt 0:02:28]} 29. Kc2 {[%emt 0:00:00]} c6 {[%emt 0:01:03]} 30. g4 {[%emt 0:00:00]} cxd5 {[%emt 0:01:15]} 31. cxd5 {[%emt 0:00:00]} c4 {[%emt 0:06:48]} 32. Be2 {[%emt 0:00:00]} Rxb1 {[%emt 0:02:32]} 33. Rxb1 {[%emt 0:00:00]} Rh8 {[%emt 0:00:50]} 34. Bf1 {[%emt 0:00:00]} Nc8 {[%emt 0:00:54]} 35. Rb4 {[%emt 0:00:00]} Nb6 {[%emt 0:00:04]} 36. a4 {[%emt 0:00:00]} Rc8 {[%emt 0:00:26]} 37. a5 {[%emt 0:00:00]} Nd7 {[%emt 0:00:07]} 38. Rb1 {[%emt 0:00:00]} Nc5 {[%emt 0:00:54]} 39. Bg2 {[%emt 0:00:00]} Nb3 {[%emt 0:01:12]} 40. Rb2 {[%emt 0:00:00]} Rc5 {[%emt 0:01:50]} 41. Ra2 {[%emt 0:00:00]} Nxa5 {[%emt 0:00:39]} 42. Bf1 {[%emt 0:00:10]} Bc8 {[%emt 0:00:52]} 43. Ra4 {[%emt 0:03:09]} Bd7 {[%emt 0:00:24]} 44. Ra3 {[%emt 0:00:50]} a6 {[%emt 0:00:15]} 45. h4 {[%emt 0:04:31]} Bc8 {[%emt 0:01:12]} 46. g5 {[%emt 0:00:59]} Nb3 {[%emt 0:00:58]} 47. Bxc4 {[%emt 0:00:56]} Rxc4 {[%emt 0:00:18]} 48. Kd3 {[%emt 0:00:45]} Na5 {[%emt 0:00:41]} 49. Rxa5 {[%emt 0:00:07]} Rc7 {[%emt 0:00:05]} 50. Ra4 {[%emt 0:00:30]} Bd7 {[%emt 0:00:44]} 51. Rb4 {[%emt 0:00:56]} a5 {[%emt 0:00:32]} 52. Rb6 {[%emt 0:00:18]} a4 {[%emt 0:00:04]} 53. gxf6+ {[%emt 0:00:54]} Kxf6 {[%emt 0:00:40]} 54. Rxd6+ {[%emt 0:00:24]} Kf7 {[%emt 0:00:26]} 55. Kc2 {[%emt 0:00:31]} Ra7 {[%emt 0:00:13]} 56. Rb6 {[%emt 0:00:59]} a3 {[%emt 0:00:33]} 57. Rb1 {[%emt 0:00:12]} Ba4+ {[%emt 0:00:46]} 58. Kc1 {[%emt 0:00:09]} a2 {[%emt 0:00:09]} 59. Ra1 {[%emt 0:00:24]} Bb3 {[%emt 0:01:01]} 60. Kb2 {[%emt 0:00:12]} Rb7 {[%emt 0:00:44]} 61. Ka3 {[%emt 0:00:17]} Bc4 {[%emt 0:00:22]} 62. Rxa2 {[%emt 0:01:18]} Ra7+ {[%emt 0:00:06]} 63. Kb4 {[%emt 0:00:11]} Bxa2 {[%emt 0:00:05]} 64. c4 {[%emt 0:00:06]} Bb1 {[%emt 0:00:27]} 65. Kc5 {[%emt 0:00:28]} Bxe4 {[%emt 0:00:18]} 66. Kd6 {[%emt 0:00:22]} Re7 {[%emt 0:00:22]} 67. c5 {[%emt 0:00:20]} Bxf5 {[%emt 0:00:08]} 68. c6 {[%emt 0:00:18]} e4 {[%emt 0:00:08]} 0-1

[Event "FIDE World School-ch G-17 2025"]
[Site "Vrnjacka Banja"]
[Date "2025.03.22"]
[Round "3.6"]
[White "Dange, Gehansa Ranumi"]
[Black "Jankovic, Tamara"]
[Result "0-1"]
[Annotator "TA"]
[ECO "B52"]
[WhiteElo "1643"]
[BlackElo "1900"]
[PlyCount "102"]
[EventDate "2025.03.19"]
[EventType "swiss"]
[EventCountry "SRB"]
[SourceTitle "playchess.com"]
[Source "ChessBase"]
[SourceQuality "1"]
[TimeControl "5400+30"]

{[%evp 9,102,22,43,22,22,20,26,26,26,17,29,20,22,11,18,26,20,34,39,-2,-14,-9,-4,-33,-26,-56,-22,-18,40,40,40,40,48,0,0,0,0,-14,0,0,35,31,39,49,109,87,103,95,87,-122,-125,-160,-165,-156,-160,-154,-193,-222,-193,-397,-400,-383,-396,-406,-395,-398,-356,-356,-361,-345,-356,-398,-371,-379,-363,-404,-423,-399,-402,-758,-741,-870,-863,-1192,-659,-1163,-1035,-946,-940,-903,-893,-2105,-2000,-5019,-1090]} 1. e4 {[%emt 0:00:02]} c5 {[%emt 0:00:06]} 2. Nf3 {[%emt 0:00:08]} d6 {[%emt 0:00:04]} 3. Bb5+ {[%emt 0:00:07]} Bd7 {[%emt 0:00:05]} 4. c4 {[%emt 0:00:05]} Nc6 {[%emt 0:00:22]} 5. Nc3 {[%emt 0:00:38]} g6 {[%emt 0:00:11]} 6. d4 {[%emt 0:00:08] B52: Sicilian: Moscow Variation with 3...Bd7.} cxd4 {[%emt 0:00:25]} 7. Nxd4 {[%emt 0:00:06]} Bg7 {[%emt 0:00:06]} 8. Be3 {[%emt 0:03:02] White has an edge.} Nf6 {[%emt 0:00:40]} 9. f3 {[%emt 0:00:12] Repels Ng4} a6 {[%emt 0:00:49]} 10. Bxc6 {[%emt 0:01:30]} bxc6 {[%emt 0:00:07]} 11. O-O {[%emt 0:00:40]} O-O {[%emt 0:00:40]} 12. Qd2 {[%emt 0:00:56]} Rb8 {[%emt 0:01:10]} 13. Rab1 {[%emt 0:04:46]} Ne8 {[%emt 0:00:55]} 14. f4 $146 {[%emt 0:02:44]} ({Predecessor:} 14. Bh6 Nc7 15. Bxg7 Kxg7 16. Rfd1 Ne6 17. Nxe6+ Bxe6 18. Qd4+ Kg8 19. c5 dxc5 20. Qxc5 {1-0 Shehzad,S (2337)-Da Silva,G (2095) Titled Tuesday intern op 11th Jun Late blitz 2024 (1)}) 14... c5 {[%emt 0:04:17]} 15. Nf3 {[%emt 0:09:27]} Nf6 {[%emt 0:10:28]} 16. e5 {[%emt 0:20:43]} Ng4 {[%emt 0:04:25]} 17. Bf2 {[%emt 0:15:21]} Nxf2 {[%emt 0:06:22]} 18. Qxf2 {[%emt 0:00:11]} Be6 {[%emt 0:04:43]} (18... Bc6 $11) 19. b3 $14 {[%emt 0:04:13]} dxe5 {[%emt 0:02:26]} 20. fxe5 {[%emt 0:01:38]} Qa5 {[%emt 0:09:58]} 21. Ne4 {[%emt 0:07:51]} (21. Nd5 $14 {deserves consideration.} Rb7 22. Rbd1) 21... Bf5 $11 {[%emt 0:00:41]} 22. Rbe1 {[%emt 0:00:06]} Rbc8 {[%emt 0:00:55]} 23. Nh4 {[%emt 0:06:26] A dynamic duo of knights.} Bd7 {[%emt 0:09:26]} ({Much weaker is} 23... Bxe5 $6 24. Nxf5 gxf5 25. Qxf5 Bd4+ 26. Kh1 $16) 24. Nf3 {[%emt 0:09:14]} Qc7 {[%emt 0:01:36][%cal Od7f5]} 25. Nc3 {[%emt 0:00:29]} Bf5 {[%emt 0:03:35]} 26. Nd5 {[%emt 0:00:44]} Qb7 {[%emt 0:00:20]} (26... Qa7 $14) 27. Qh4 $1 $16 {[%emt 0:00:30][%cal Og2g4]} Rce8 {[%emt 0:04:12]} 28. Ng5 {[%emt 0:06:04][%csl Gg5][%cal Rh4h7] White attacks} h6 {[%emt 0:03:02] [#]} 29. Rxf5 {[%emt 0:05:25]} gxf5 $17 {[%emt 0:00:55] White is on the road to losing.} 30. Re3 {[%emt 0:01:07][%cal Be1e3,Be3g3,Bg3g5][%mdl 32]} hxg5 {[%emt 0:17:21]} 31. Qxg5 {[%emt 0:00:02][%cal Oe3g3] [#] Intending Rg3! and mate.} Qc6 $1 {[%emt 0:00:10]} 32. Rg3 {[%emt 0:01:15][%csl Gg3][%cal Rg5g7] [#]} Qg6 {[%emt 0:00:36]} 33. Qf4 {[%emt 0:00:33]} (33. Nxe7+ Rxe7) 33... Qh5 {[%emt 0:03:28]} 34. h3 $2 {[%emt 0:00:33]} (34. Kf2 {only move.}) 34... Kh8 $19 {[%emt 0:04:05]} 35. Rg5 {[%emt 0:00:13]} Qh6 {[%emt 0:01:06][%cal Og7e5]} 36. Qxf5 {[%emt 0:01:21] Rh5 would now be deadly.} e6 {[%emt 0:07:27]} 37. Qg4 {[%emt 0:00:00]} exd5 {[%emt 0:00:18]} 38. Rh5 {[%emt 0:00:00] [#]} Rxe5 $1 {[%emt 0:00:46]} 39. Rxh6+ {[%emt 0:00:00]} Bxh6 {[%emt 0:00:01]} 40. Qh4 {[%emt 0:00:27]} Kg7 {[%emt 0:00:52]} 41. cxd5 {[%emt 0:00:56]} Rxd5 {[%emt 0:00:11]} 42. Qg4+ {[%emt 0:00:15]} Rg5 {[%emt 0:00:11]} 43. Qc4 {[%emt 0:00:09]} Re8 {[%emt 0:00:48]} 44. Qxa6 {[%emt 0:01:18]} (44. b4 $142) 44... Rge5 {[%emt 0:00:22] Black is clearly winning.} 45. Qd3 {[%emt 0:00:21]} Be3+ {[%emt 0:01:28]} 46. Kf1 {[%emt 0:00:21]} R8e6 {[%emt 0:00:20]} 47. a4 {[%emt 0:00:31]} Rf6+ {[%emt 0:00:25]} 48. Ke1 {[%emt 0:00:05]} Bd4+ {[%emt 0:00:53]} 49. Kd1 {[%emt 0:00:08]} Re3 {[%emt 0:00:14]} 50. Qc4 {[%emt 0:00:25]} Rf2 {[%emt 0:00:51][%cal Oe3g3] ...Rg3! is the strong threat.} 51. Qd5 {[%emt 0:00:19]} Rd3+ {[%emt 0:00:17] Weighted Error Value: White=0.60/Black=0.26 (precise)   Mistake:       	White=4     	Black=2      Inaccurate:     	White=3     	Black=2      OK:         	White=13    	Black=19     Best:        	White=4     	Black=2      Strong:       	White=1     	---        Brilliant:      	---       	Black=1} (51... Rg3 $142 52. b4 Rgxg2 (52... Rd3+ $2 53. Ke1 $19) 53. Qxg2+ Rxg2 54. bxc5 Bxc5) 0-1